[Event "Mitropa Cup Women 2024"]
[Site "Apolda"]
[Date "2024.02.17"]
[Round "3.13"]
[White "Urh, Zala"]
[Black "Polterauer, Chiara"]
[Result "1-0"]
[ECO "D97"]
[WhiteElo "2290"]
[BlackElo "2189"]
[Annotator "TA"]
[PlyCount "55"]
[EventDate "2024.02.15"]
[EventType "team-tourn"]
[EventCountry "GER"]
[SourceTitle "playchess.com"]
[Source "ChessBase"]
[SourceQuality "1"]
[WhiteTeam "Slovenia"]
[BlackTeam "Austria"]
[WhiteTeamCountry "SLO"]
[BlackTeamCountry "AUT"]
[TimeControl "40/5400+30:1800+30"]

{[%evp 19,55,6,21,17,14,26,16,12,11,20,23,26,68,69,71,75,89,96,138,-27,34,19,703,738,737,718,904,888,935,835,1105,962,982,937,994,947,977,929]} 1. d4 {[%emt 0:00:03]} Nf6 {[%emt 0:00:10]} 2. c4 {[%emt 0:00:04]} g6 {[%emt 0:00:06]} 3. Nc3 {[%emt 0:00:15]} d5 {[%emt 0:00:12]} 4. Nf3 {[%emt 0:00:05]} Bg7 {[%emt 0:00:28]} 5. Qb3 {[%emt 0:00:06]} dxc4 {[%emt 0:00:30]} 6. Qxc4 {[%emt 0:00:06]} O-O {[%emt 0:00:15]} 7. e4 {[%emt 0:00:34][%cal Be2e4,Be4e5][%mdl 32]} a6 {[%emt 0:00:22]} 8. Be2 {[%emt 0:00:25]} b5 {[%emt 0:01:12]} 9. Qb3 {[%emt 0:00:15]} c5 {[%emt 0:01:37]} 10. dxc5 {[%emt 0:00:14]} Nbd7 {[%emt 0:02:38]} 11. e5 {[%emt 0:01:57]} Nxc5 {[%emt 0:04:42]} 12. Qb4 {[%emt 0:00:16]} Nfd7 {[%emt 0:00:41][%cal Oc8b7]} 13. O-O {[%emt 0:00:33] The position is equal.} Bb7 {[%emt 0:08:39][%cal Oa6a5]} 14. Rd1 {[%emt 0:02:15]} Qc7 {[%emt 0:09:25]} 15. Be3 $1 {[%emt 0:03:17]} Rfc8 {[%emt 0:04:22]} 16. Rac1 {[%emt 0:12:23]} e6 {[%emt 0:07:27]} 17. a4 {[%emt 0:29:32]} (17. Qh4 {is interesting.} Nxe5 18. Ne4 Bxe4 19. Ng5) 17... Bf8 {[%emt 0:06:12][%cal Oc5d3] [#] Threatens to win with ...Nd3!} 18. Qh4 $1 {[%emt 0:02:58] Black must now prevent b4.} (18. axb5 Nd3 (18... Nxe5 19. b6 $16) 19. Qd4 Nxc1 20. Bxc1 Rd8 $17) 18... b4 {[%emt 0:14:53]} 19. Nb1 {[%emt 0:06:47] White has more active pieces.} (19. Qxb4 $2 {is the wrong capture.} Nd3 (19... Nxe5 $2 20. Nxe5 $18) 20. Qh4 Nxc1 21. Rxc1 Bg7 $19 (21... Nxe5 $2 22. Nxe5 Qxe5 23. Rd1 $19)) ({Better is} 19. Ng5 $1 $16 {[%csl Gg5][%cal Rh4h7]} h6 20. Nce4 Bxe4 (20... hxg5 $2 21. Nxg5 Bg7 22. Rxc5 $18) 21. Nxe4 Qxe5 22. Rxc5 (22. Bxh6 $2 Bxh6 23. Qxh6 Nxe4 $19) (22. Nxc5 Nxc5 23. Qxb4 Rab8 $14) 22... Bxc5 23. Bxh6 (23. Rxd7 Bxe3 24. fxe3 Rc1+ 25. Kf2 g5 $16)) 19... a5 {[%emt 0:07:29]} ({Black should try} 19... Nxe5 $11 20. Nbd2 Nxf3+ 21. Nxf3 Bd5) 20. Nbd2 $14 {[%emt 0:06:42]} Ba6 $2 {[%emt 0:13:25][%mdl 8192] A mistake that costs the game.} ({Much worse is} 20... Nxe5 $6 21. Ng5 h5 22. Nde4 Bxe4 23. Nxe4 $18) (20... Bd5 $11) 21. Bxa6 $18 {[%emt 0:04:40] White is clearly winning.} Rxa6 {[%emt 0:00:04]} 22. Ne4 {[%emt 0:00:04]} Rc6 {[%emt 0:05:47]} 23. Nd4 {[%emt 0:03:33][%cal Bf3d4,Bd4b5,Bb5a7][%mdl 32]} Ra6 {[%emt 0:01:39]} 24. Nb5 {[%emt 0:06:48]} Qc6 {[%emt 0:02:31] [#]} 25. Rxd7 $1 {[%emt 0:09:33][%mdl 512]} Nxd7 {[%emt 0:02:12]} 26. Rxc6 {[%emt 0:00:06]} Raxc6 {[%emt 0:00:05]} 27. h3 {[%emt 0:01:35]} (27. Na7 $2 {gets mated.} Rc1+ 28. Bxc1 Rxc1#) 27... Bg7 {[%emt 0:03:42]} 28. Na7 {[%emt 0:01:01] Weighted Error Value: White=0.20 (precise) /Black=0.30.  Loses game:     	---       	Black=1      Mistake:       	White=1     	Black=1      Inaccurate:     	---       	Black=2      OK:         	White=6     	Black=3      Best:        	White=1     	Black=1      Strong:       	White=2     	---} 1-0

[Event "Mitropa Cup Women 2024"]
[Site "Apolda"]
[Date "2024.02.17"]
[Round "3.14"]
[White "Hapala, Elisabeth"]
[Black "Shpanko, Nadiia"]
[Result "1/2-1/2"]
[ECO "B15"]
[WhiteElo "2001"]
[BlackElo "2179"]
[Annotator "RC"]
[PlyCount "113"]
[EventDate "2024.02.15"]
[EventType "team-tourn"]
[EventCountry "GER"]
[SourceTitle "playchess.com"]
[Source "ChessBase"]
[SourceQuality "1"]
[WhiteTeam "Austria"]
[BlackTeam "Slovenia"]
[WhiteTeamCountry "AUT"]
[BlackTeamCountry "SLO"]
[TimeControl "40/5400+30:1800+30"]

1. e4 {[%emt 0:00:01]} c6 {[%emt 0:00:09]} 2. d4 {[%emt 0:00:04]} d5 {[%emt 0:00:06]} 3. Nc3 {[%emt 0:00:10]} dxe4 {[%emt 0:00:14]} 4. Nxe4 {[%emt 0:00:05]} Nf6 {[%emt 0:00:05]} 5. Nxf6+ {[%emt 0:00:10]} exf6 {[%emt 0:00:05]} 6. c3 {[%emt 0:00:14]} Bd6 {[%emt 0:00:12]} 7. Bd3 {[%emt 0:00:12]} O-O {[%emt 0:00:28]} 8. Qc2 {[%emt 0:00:16]} h6 {[%emt 0:04:44]} 9. Ne2 {[%emt 0:00:14]} Nd7 {[%emt 0:00:47]} 10. O-O {[%emt 0:00:34]} Qc7 {[%emt 0:01:08]} 11. Ng3 {[%emt 0:02:38]} c5 {[%emt 0:00:59]} 12. d5 {[%emt 0:03:06]} c4 {[%emt 0:02:13]} 13. Be2 {[%emt 0:08:57]} Re8 {[%emt 0:12:02]} 14. Be3 {[%emt 0:05:29]} b5 {[%emt 0:23:22]} 15. a4 {[%emt 0:15:54]} Bb7 {[%emt 0:14:18]} 16. axb5 {[%emt 0:10:10]} Bc5 {[%emt 0:09:05]} 17. d6 {[%emt 0:18:35]} Bxd6 {[%emt 0:01:05]} 18. Rxa7 {[%emt 0:06:06]} Bxg3 {[%emt 0:05:09]} 19. hxg3 {[%emt 0:00:23]} Rxa7 {[%emt 0:00:04]} 20. Bxa7 {[%emt 0:00:05]} Be4 {[%emt 0:00:36]} 21. Qa4 {[%emt 0:03:07]} Bxg2 {[%emt 0:04:13]} 22. Qxc4 {[%emt 0:25:00]} Qb7 {[%emt 0:04:21]} 23. Bd4 {[%emt 0:00:00]} Bxf1 {[%emt 0:10:32]} 24. Bxf1 {[%emt 0:00:00]} Ne5 {[%emt 0:01:35]} 25. Bxe5 {[%emt 0:00:00]} Rxe5 {[%emt 0:00:04]} 26. Qc6 {[%emt 0:00:00]} Qxc6 {[%emt 0:03:22]} 27. bxc6 {[%emt 0:00:00]} Rc5 {[%emt 0:00:01]} 28. Bg2 {[%emt 0:00:00]} Kf8 {[%emt 0:00:11]} 29. b4 {[%emt 0:01:16]} Rxc3 {[%emt 0:00:09]} 30. b5 {[%emt 0:00:01]} Ke7 {[%emt 0:00:54]} 31. b6 {[%emt 0:00:04]} Kd8 {[%emt 0:02:36]} 32. c7+ {[%emt 0:00:37]} Kc8 {[%emt 0:00:13]} 33. Bh3+ {[%emt 0:00:34]} Kb7 {[%emt 0:00:06]} 34. Kf1 {[%emt 0:01:09]} g6 {[%emt 0:00:44]} 35. Bd7 {[%emt 0:00:04]} Rc2 {[%emt 0:00:51]} 36. Ke1 {[%emt 0:00:21]} h5 {[%emt 0:00:16]} 37. Kd1 {[%emt 0:00:10]} Rc5 38. Ke2 {[%emt 0:03:44]} Rc2+ {[%emt 0:02:31]} 39. Kd3 {[%emt 0:00:00]} Rc1 40. Ke4 {[%emt 0:01:00]} Re1+ {[%emt 0:01:00]} 41. Kf4 {[%emt 0:29:41]} Rc1 {[%emt 0:30:30]} 42. Kf3 {[%emt 0:01:19]} Rc3+ {[%emt 0:00:30]} 43. Kg2 {[%emt 0:00:30]} Rc2 {[%emt 0:00:30]} 44. Kh3 {[%emt 0:00:00]} Rc3 {[%emt 0:00:30]} 45. f3 {[%emt 0:00:00]} Rc2 {[%emt 0:00:30]} 46. g4 {[%emt 0:00:00]} hxg4+ {[%emt 0:00:00]} 47. Kxg4 {[%emt 0:00:00]} Rc4+ {[%emt 0:00:00]} 48. Kg3 {[%emt 0:00:00]} Rc2 {[%emt 0:00:00]} 49. f4 {[%emt 0:00:00]} Rc1 {[%emt 0:00:00]} 50. Kg4 {[%emt 0:00:00]} Rc3 {[%emt 0:00:00]} 51. Kh4 {[%emt 0:00:00]} g5+ {[%emt 0:00:00]} 52. fxg5 {[%emt 0:00:00]} Rc4+ {[%emt 0:00:00]} 53. Kh5 {[%emt 0:00:00]} fxg5 {[%emt 0:00:00]} 54. Kxg5 {[%emt 0:00:02]} Rxc7 {[%emt 0:00:00]} 55. bxc7 {[%emt 0:00:03]} Kxc7 {[%emt 0:00:00]} 56. Kf6 {[%emt 0:00:02]} Kxd7 {[%emt 0:00:00]} 57. Kxf7 {[%emt 0:06:53]} 1/2-1/2

[Event "Mitropa Cup Women 2024"]
[Site "Apolda"]
[Date "2024.02.17"]
[Round "3.15"]
[White "Vidic, Teja"]
[Black "Mayrhuber, Nikola"]
[Result "1-0"]
[ECO "B51"]
[WhiteElo "2132"]
[BlackElo "2009"]
[Annotator "NA RC"]
[PlyCount "59"]
[EventDate "2024.02.15"]
[EventType "team-tourn"]
[EventCountry "GER"]
[SourceTitle "playchess.com"]
[Source "ChessBase"]
[SourceQuality "1"]
[WhiteTeam "Slovenia"]
[BlackTeam "Austria"]
[WhiteTeamCountry "SLO"]
[BlackTeamCountry "AUT"]
[TimeControl "40/5400+30:1800+30"]

1. e4 {[%emt 0:00:02]} c5 {[%emt 0:00:04]} 2. Nf3 {[%emt 0:00:05]} d6 {[%emt 0:00:04]} 3. Bb5+ {[%emt 0:00:05]} Nd7 {[%emt 0:00:05]} 4. c4 {[%emt 0:00:05]} a6 {[%emt 0:04:14]} 5. Ba4 {[%emt 0:00:05]} Ngf6 {[%emt 0:01:27]} 6. Nc3 {[%emt 0:00:18]} g6 {[%emt 0:01:40]} 7. O-O {[%emt 0:01:47]} Bg7 {[%emt 0:00:04]} 8. d3 {[%emt 0:00:46]} O-O {[%emt 0:00:55]} 9. h3 {[%emt 0:00:11]} Rb8 {[%emt 0:17:03]} 10. Rb1 {[%emt 0:08:27]} Ne8 {[%emt 0:05:16]} 11. d4 {[%emt 0:13:03]} cxd4 {[%emt 0:01:55]} 12. Nxd4 {[%emt 0:00:36]} Nc5 {[%emt 0:02:05]} 13. Bxe8 {[%emt 0:07:14]} Qxe8 {[%emt 0:03:32]} 14. a4 {[%emt 0:05:31]} Bd7 {[%emt 0:06:29]} 15. b3 {[%emt 0:01:31]} Bc6 {[%emt 0:05:25]} 16. Re1 {[%emt 0:01:56]} Ne6 {[%emt 0:12:53]} 17. Be3 {[%emt 0:11:31]} Nxd4 {[%emt 0:09:58]} 18. Bxd4 {[%emt 0:00:06]} b5 {[%emt 0:00:36]} 19. Bxg7 {[%emt 0:01:42]} Kxg7 {[%emt 0:00:07]} 20. Qd4+ {[%emt 0:00:34]} f6 {[%emt 0:00:49]} 21. cxb5 {[%emt 0:05:24]} axb5 {[%emt 0:00:06]} 22. axb5 {[%emt 0:00:17]} Bxb5 {[%emt 0:00:20]} 23. Nd5 {[%emt 0:00:33]} e5 {[%emt 0:09:56]} 24. Qd2 {[%emt 0:04:53]} f5 {[%emt 0:04:00]} 25. exf5 {[%emt 0:00:57]} gxf5 {[%emt 0:03:57]} 26. f4 {[%emt 0:04:14]} Bc6 {[%emt 0:06:54]} 27. fxe5 {[%emt 0:07:06]} dxe5 {[%emt 0:00:02]} 28. Qg5+ {[%emt 0:00:07]} Kh8 {[%emt 0:00:19]} 29. Ne7 {[%emt 0:00:08]} Be4 {[%emt 0:00:49]} 30. Rxe4 {[%emt 0:26:16]} 1-0

[Event "Mitropa Cup Women 2024"]
[Site "Apolda"]
[Date "2024.02.17"]
[Round "3.16"]
[White "Deak-Sala, Emilia"]
[Black "Mihelic, Vesna"]
[Result "1/2-1/2"]
[ECO "C54"]
[WhiteElo "1843"]
[BlackElo "2112"]
[Annotator "NA RC"]
[PlyCount "102"]
[EventDate "2024.02.15"]
[EventType "team-tourn"]
[EventCountry "GER"]
[SourceTitle "playchess.com"]
[Source "ChessBase"]
[SourceQuality "1"]
[WhiteTeam "Austria"]
[BlackTeam "Slovenia"]
[WhiteTeamCountry "AUT"]
[BlackTeamCountry "SLO"]
[TimeControl "40/5400+30:1800+30"]

1. e4 {[%emt 0:00:03]} e5 {[%emt 0:00:05]} 2. Nf3 {[%emt 0:00:08]} Nc6 {[%emt 0:00:07]} 3. Bc4 {[%emt 0:00:07]} Bc5 {[%emt 0:00:08]} 4. c3 {[%emt 0:00:19]} Nf6 {[%emt 0:00:07]} 5. d4 {[%emt 0:00:07]} exd4 {[%emt 0:00:13]} 6. e5 {[%emt 0:00:14]} d5 {[%emt 0:00:15]} 7. Bb5 {[%emt 0:00:13]} Ne4 {[%emt 0:00:10]} 8. cxd4 {[%emt 0:00:04]} Bb6 {[%emt 0:00:09]} 9. Nc3 {[%emt 0:00:58]} O-O {[%emt 0:01:14]} 10. Be3 {[%emt 0:01:06]} Bf5 {[%emt 0:03:25]} 11. O-O {[%emt 0:10:35]} f6 {[%emt 0:06:12]} 12. exf6 {[%emt 0:08:21]} Nxc3 {[%emt 0:05:14]} 13. bxc3 {[%emt 0:00:54]} Qxf6 {[%emt 0:00:25]} 14. Qb3 {[%emt 0:11:22]} Be4 {[%emt 0:08:22]} 15. Ng5 {[%emt 0:08:15]} Qg6 {[%emt 0:04:23]} 16. Bxc6 {[%emt 0:06:35]} bxc6 {[%emt 0:00:14]} 17. Nxe4 {[%emt 0:00:40]} Qxe4 {[%emt 0:00:02]} 18. a4 {[%emt 0:13:01]} Ba5 {[%emt 0:13:05]} 19. Qa3 {[%emt 0:02:18]} Qd3 {[%emt 0:02:02]} 20. Rac1 {[%emt 0:10:16]} Qc4 {[%emt 0:00:52]} 21. Qc5 {[%emt 0:02:45]} Qxc5 {[%emt 0:02:07]} 22. dxc5 {[%emt 0:00:59]} Rab8 {[%emt 0:01:56]} 23. Bd4 {[%emt 0:00:39]} Rb3 {[%emt 0:01:26]} 24. Rb1 {[%emt 0:04:21]} Rfb8 {[%emt 0:00:22]} 25. Rxb3 {[%emt 0:00:07]} Rxb3 {[%emt 0:00:02]} 26. Rc1 {[%emt 0:00:14]} Ra3 {[%emt 0:06:43]} 27. Kf1 {[%emt 0:00:48]} Rxa4 {[%emt 0:00:38]} 28. Ke2 {[%emt 0:00:16]} Rc4 {[%emt 0:00:34]} 29. Kd3 {[%emt 0:01:05]} Bb4 {[%emt 0:00:59]} 30. Ra1 {[%emt 0:04:18]} Bxc5 {[%emt 0:00:30]} 31. Bxc5 {[%emt 0:00:08]} Rxc5 {[%emt 0:00:01]} 32. Rxa7 {[%emt 0:00:08]} Kf7 {[%emt 0:01:05]} 33. Rxc7+ {[%emt 0:00:46]} Kf6 {[%emt 0:00:10]} 34. Kd4 {[%emt 0:04:39]} Rc4+ {[%emt 0:00:20]} 35. Kd3 {[%emt 0:00:04]} h5 {[%emt 0:02:45]} 36. Rc8 {[%emt 0:01:22]} Kg5 {[%emt 0:04:50]} 37. h3 {[%emt 0:07:02]} Kf6 {[%emt 0:07:54]} 38. Rc7 {[%emt 0:01:07]} g6 {[%emt 0:06:33]} 39. Rc8 {[%emt 0:00:34]} Kf5 {[%emt 0:12:45]} 40. Rf8+ {[%emt 0:01:21]} Ke6 {[%emt 0:08:19]} 41. Rg8 {[%emt 0:31:13]} Kf7 {[%emt 0:30:21]} 42. Rc8 {[%emt 0:00:14]} h4 {[%emt 0:02:25]} 43. Rc7+ {[%emt 0:00:58]} Kf6 {[%emt 0:00:27]} 44. Rc8 {[%emt 0:00:44]} Ke6 {[%emt 0:00:00]} 45. Rg8 {[%emt 0:00:00]} Kf7 {[%emt 0:00:00]} 46. Rc8 {[%emt 0:00:00]} g5 {[%emt 0:00:00]} 47. Rc7+ {[%emt 0:00:00]} Kf6 {[%emt 0:00:00]} 48. Rc8 {[%emt 0:00:00]} Kf5 {[%emt 0:00:00]} 49. Rf8+ {[%emt 0:00:00]} Ke5 {[%emt 0:00:00]} 50. Re8+ {[%emt 0:00:00]} Kf6 {[%emt 0:00:00]} 51. Rc8 {[%emt 0:00:00]} Ke5 {[%emt 0:06:04]} 1/2-1/2

[Event "Mitropa Cup Women 2024"]
[Site "Apolda"]
[Date "2024.02.17"]
[Round "3.17"]
[White "Novosadova, Kristyna"]
[Black "Brunello, Marina"]
[Result "0-1"]
[ECO "B10"]
[WhiteElo "2188"]
[BlackElo "2345"]
[Annotator "TA"]
[PlyCount "42"]
[EventDate "2024.02.15"]
[EventType "team-tourn"]
[EventCountry "GER"]
[SourceTitle "playchess.com"]
[Source "ChessBase"]
[SourceQuality "1"]
[WhiteTeam "Czech Republic"]
[BlackTeam "Italy"]
[WhiteTeamCountry "CZE"]
[BlackTeamCountry "ITA"]
[TimeControl "40/5400+30:1800+30"]

{[%evp 9,42,-10,0,0,-8,-45,-40,-43,-39,-54,-43,-47,-51,-54,-45,-110,-52,-81,-68,-72,-66,-103,-58,-44,-45,-76,-69,-55,-60,-64,-43,-75,-27,-213,-212]} 1. e4 {[%emt 0:00:01]} c6 {[%emt 0:00:06]} 2. Nf3 {[%emt 0:01:14]} d5 {[%emt 0:00:12]} 3. d3 {[%emt 0:00:05]} dxe4 {[%emt 0:00:09]} 4. dxe4 {[%emt 0:00:06]} Qxd1+ {[%emt 0:00:04]} 5. Kxd1 {[%emt 0:00:05]} Nf6 {[%emt 0:00:04]} 6. Bd3 {[%emt 0:01:26]} Nbd7 {[%emt 0:08:33]} 7. b4 {[%emt 0:03:26]} a5 {[%emt 0:10:42]} 8. bxa5 {[%emt 0:00:40] Schwarz steht etwas besser.} Rxa5 {[%emt 0:02:03]} 9. Bd2 {[%emt 0:01:08]} Ra8 {[%emt 0:00:25]} 10. Nc3 {[%emt 0:02:38]} e5 {[%emt 0:10:08]} 11. Ke2 {[%emt 0:00:54]} Ba3 {[%emt 0:02:26]} 12. Rhb1 {[%emt 0:00:56]} (12. Bc1 $1 $15) 12... Ke7 {[%emt 0:03:31]} (12... O-O $17) 13. Nd1 {[%emt 0:02:43]} Ne8 {[%emt 0:03:17]} 14. Ne3 {[%emt 0:04:48]} Nd6 {[%emt 0:00:36]} 15. g4 {[%emt 0:11:53]} Nc5 {[%emt 0:10:12] ...f6 ist eine echte Drohung.} 16. Nxe5 {[%emt 0:15:58][%cal Ob1b3]} Ndxe4 {[%emt 0:03:28]} 17. Be1 {[%emt 0:05:07]} Nxd3 {[%emt 0:01:14]} 18. cxd3 {[%emt 0:07:44]} Nd6 {[%emt 0:00:03]} 19. N5c4 {[%emt 0:00:45]} Bc5 {[%emt 0:01:34]} 20. Bc3 {[%emt 0:01:24]} Nb5 {[%emt 0:06:26]} (20... Nxc4 $17 21. dxc4 Ra4 22. Nf5+ Kd8 (22... Bxf5 23. gxf5 b6 24. Re1 $17) 23. Bxg7 Re8+ 24. Kf3 h5 (24... Rxc4 $2 25. Rc1 $19)) 21. Rxb5 $2 {[%emt 0:11:50] [#]} cxb5 {[%emt 0:00:43] Gewichteter Fehlerwert: Weiß=0.30/Schwarz=0.13 (sehr präzise) .  Verlustzug:     	Weiß=1     	---        Fehler:       	Weiß=1     	Schwarz=2     Ungenau:       	Weiß=5     	Schwarz=1     OK:         	Weiß=1     	Schwarz=6     Bester:       	Weiß=1     	---} 0-1

[Event "Mitropa Cup Women 2024"]
[Site "Apolda"]
[Date "2024.02.17"]
[Round "3.18"]
[White "Zimina, Olga"]
[Black "Koubova, Anna Marie"]
[Result "1-0"]
[ECO "C95"]
[WhiteElo "2291"]
[BlackElo "2100"]
[Annotator "TA"]
[PlyCount "60"]
[EventDate "2024.02.15"]
[EventType "team-tourn"]
[EventCountry "GER"]
[SourceTitle "playchess.com"]
[Source "ChessBase"]
[SourceQuality "1"]
[WhiteTeam "Italy"]
[BlackTeam "Czech Republic"]
[WhiteTeamCountry "ITA"]
[BlackTeamCountry "CZE"]
[TimeControl "40/5400+30:1800+30"]

{[%evp 32,60,25,25,26,7,8,14,12,0,0,0,0,-13,0,0,0,0,1,0,0,0,0,0,0,0,0,0,0,-68,0]} 1. e4 {[%emt 0:00:24]} e5 {[%emt 0:00:05]} 2. Nf3 {[%emt 0:00:06]} Nc6 {[%emt 0:00:05]} 3. Bb5 {[%emt 0:00:04]} a6 {[%emt 0:00:05]} 4. Ba4 {[%emt 0:00:06]} Nf6 {[%emt 0:00:07]} 5. O-O {[%emt 0:00:09]} Be7 {[%emt 0:00:07]} 6. Re1 {[%emt 0:00:13]} b5 {[%emt 0:00:07]} 7. Bb3 {[%emt 0:00:05]} d6 {[%emt 0:00:05]} 8. c3 {[%emt 0:00:11]} O-O {[%emt 0:00:08]} 9. h3 {[%emt 0:00:20]} Nb8 {[%emt 0:00:13]} 10. d4 {[%emt 0:00:23]} Nbd7 {[%emt 0:00:06]} 11. Nbd2 {[%emt 0:00:29][%cal Bb1d2,Bd2f1,Bf1g3][%mdl 32]} Bb7 {[%emt 0:00:20]} 12. Bc2 {[%emt 0:00:28]} Re8 {[%emt 0:00:18]} 13. Nf1 {[%emt 0:00:27]} Bf8 {[%emt 0:00:12]} 14. Ng3 {[%emt 0:00:18]} g6 {[%emt 0:00:24]} 15. a4 {[%emt 0:03:29]} c5 {[%emt 0:00:34]} 16. d5 {[%emt 0:01:08]} c4 {[%emt 0:00:11]} 17. Bg5 {[%emt 0:03:52]} Nc5 {[%emt 0:00:54]} 18. axb5 {[%emt 0:03:20]} axb5 {[%emt 0:01:23]} 19. Rxa8 {[%emt 0:00:34]} Bxa8 {[%emt 0:00:12] The position is equal.} 20. Nh2 {[%emt 0:01:56]} Be7 {[%emt 0:04:00][%cal Of6d5]} 21. Bh6 {[%emt 0:03:18]} Bb7 {[%emt 0:16:33][%cal Ba8b7,Bb7c8,Bc8d7][%mdl 32]} 22. Qf3 {[%emt 0:02:14]} Bc8 {[%emt 0:06:08]} 23. Ra1 {[%emt 0:07:03]} Bd7 {[%emt 0:03:48]} 24. Nhf1 {[%emt 0:07:57]} Bf8 {[%emt 0:16:03]} 25. Bg5 {[%emt 0:03:23]} Be7 {[%emt 0:04:23][%cal Of6d5]} 26. Be3 {[%emt 0:01:02]} Qc7 {[%emt 0:01:36]} 27. Nh2 {[%emt 0:04:07]} Rb8 {[%emt 0:03:12]} 28. Qe2 {[%emt 0:04:13]} Na4 {[%emt 0:09:47]} 29. Bxa4 {[%emt 0:09:10]} bxa4 {[%emt 0:00:06]} 30. Rf1 {[%emt 0:02:00]} (30. Bc1 $11) 30... Rb3 {[%emt 0:09:33][%mdl 32768] Weighted Error Value: White=0.10 (very precise) /Black=0.02 (flawless) .  Mistake:       	White=1     	Black=1      OK:         	White=4     	Black=6     . Loss on time!?} ({Better is} 30... h5 $15 31. Nf3 Qb7) 1-0

[Event "Mitropa Cup Women 2024"]
[Site "Apolda"]
[Date "2024.02.17"]
[Round "3.19"]
[White "Lhotska, Anna"]
[Black "Cassi, Elisa"]
[Result "1-0"]
[ECO "A46"]
[WhiteElo "2053"]
[BlackElo "2033"]
[Annotator "NA RC"]
[PlyCount "35"]
[EventDate "2024.02.15"]
[EventType "team-tourn"]
[EventCountry "GER"]
[SourceTitle "playchess.com"]
[Source "ChessBase"]
[SourceQuality "1"]
[WhiteTeam "Czech Republic"]
[BlackTeam "Italy"]
[WhiteTeamCountry "CZE"]
[BlackTeamCountry "ITA"]
[TimeControl "40/5400+30:1800+30"]

1. d4 {[%emt 0:00:07]} Nf6 {[%emt 0:00:28]} 2. Nf3 {[%emt 0:00:07]} e6 {[%emt 0:00:32]} 3. g3 {[%emt 0:00:09]} b5 {[%emt 0:00:41]} 4. e3 {[%emt 0:00:11]} a6 {[%emt 0:00:43]} 5. a4 {[%emt 0:00:10]} b4 {[%emt 0:00:29]} 6. Bg2 {[%emt 0:01:09]} Bb7 {[%emt 0:00:40]} 7. c4 {[%emt 0:00:14]} bxc3 {[%emt 0:01:25]} 8. Nxc3 {[%emt 0:00:47]} Be7 {[%emt 0:05:14]} 9. O-O {[%emt 0:00:21]} O-O {[%emt 0:02:49]} 10. Qb3 {[%emt 0:03:38]} Qc8 {[%emt 0:01:08]} 11. a5 {[%emt 0:00:22]} d5 {[%emt 0:04:20]} 12. Bd2 {[%emt 0:05:12]} Nbd7 {[%emt 0:05:38]} 13. Na4 {[%emt 0:02:42]} c5 {[%emt 0:01:32]} 14. dxc5 {[%emt 0:00:40]} Nxc5 {[%emt 0:00:44]} 15. Nxc5 {[%emt 0:00:39]} Bxc5 {[%emt 0:02:46]} 16. Rfc1 {[%emt 0:03:15]} Rb8 {[%emt 0:04:28]} 17. Qd1 {[%emt 0:02:45]} Ne4 {[%emt 0:09:35]} 18. b4 {[%emt 0:00:33]} 1-0

[Event "Mitropa Cup Women 2024"]
[Site "Apolda"]
[Date "2024.02.17"]
[Round "3.20"]
[White "Sala, Giulia"]
[Black "Rybackova, Lucie"]
[Result "1-0"]
[ECO "B42"]
[WhiteElo "2035"]
[BlackElo "1970"]
[Annotator "NA RC"]
[PlyCount "83"]
[EventDate "2024.02.15"]
[EventType "team-tourn"]
[EventCountry "GER"]
[SourceTitle "playchess.com"]
[Source "ChessBase"]
[SourceQuality "1"]
[WhiteTeam "Italy"]
[BlackTeam "Czech Republic"]
[WhiteTeamCountry "ITA"]
[BlackTeamCountry "CZE"]
[TimeControl "40/5400+30:1800+30"]

1. e4 {[%emt 0:00:03]} c5 {[%emt 0:00:20]} 2. Nf3 {[%emt 0:00:06]} e6 {[%emt 0:00:10]} 3. d4 {[%emt 0:00:10]} cxd4 {[%emt 0:00:09]} 4. Nxd4 {[%emt 0:00:08]} a6 {[%emt 0:00:15]} 5. Bd3 {[%emt 0:02:10]} Bc5 {[%emt 0:00:21]} 6. Nb3 {[%emt 0:00:22]} Ba7 {[%emt 0:00:15]} 7. O-O {[%emt 0:00:34]} d6 {[%emt 0:03:23]} 8. Nc3 {[%emt 0:00:17]} Nf6 {[%emt 0:03:08]} 9. Kh1 {[%emt 0:00:43]} b5 {[%emt 0:05:37]} 10. a3 {[%emt 0:00:54]} Bb7 {[%emt 0:03:22]} 11. f4 {[%emt 0:01:20]} Qc7 {[%emt 0:14:10]} 12. Qf3 {[%emt 0:01:03]} Nbd7 {[%emt 0:04:40]} 13. Be3 {[%emt 0:03:22]} Bxe3 {[%emt 0:07:48]} 14. Qxe3 {[%emt 0:00:03]} h5 {[%emt 0:08:30]} 15. Rae1 {[%emt 0:05:16]} e5 {[%emt 0:11:23]} 16. Nd5 {[%emt 0:15:15]} Nxd5 {[%emt 0:04:39]} 17. exd5 {[%emt 0:00:03]} Bxd5 {[%emt 0:02:18]} 18. Be4 {[%emt 0:04:00]} Bxe4 {[%emt 0:03:13]} 19. Qxe4 {[%emt 0:00:02]} O-O {[%emt 0:00:41]} 20. f5 {[%emt 0:10:52]} Nf6 {[%emt 0:00:41]} 21. Qe3 {[%emt 0:07:16]} e4 {[%emt 0:11:18]} 22. Nd4 {[%emt 0:03:50]} d5 {[%emt 0:02:30]} 23. Qg5 {[%emt 0:02:54]} Qc4 {[%emt 0:01:15]} 24. c3 {[%emt 0:03:07]} Rfe8 {[%emt 0:02:08]} 25. Kg1 {[%emt 0:11:06]} Qc5 {[%emt 0:06:30]} 26. Re3 {[%emt 0:01:43]} Qf8 {[%emt 0:03:08]} 27. Rf4 {[%emt 0:03:59]} Rab8 {[%emt 0:01:09]} 28. g4 {[%emt 0:10:43]} hxg4 {[%emt 0:01:29]} 29. h3 {[%emt 0:01:22]} Rb6 {[%emt 0:00:00]} 30. Qh4 {[%emt 0:03:19]} Qd6 {[%emt 0:00:13]} 31. Ne2 {[%emt 0:02:59]} Qe7 {[%emt 0:00:37]} 32. Rg3 {[%emt 0:03:02]} a5 {[%emt 0:00:31]} 33. hxg4 {[%emt 0:00:48]} Nh7 {[%emt 0:00:32]} 34. g5 {[%emt 0:00:21]} g6 {[%emt 0:00:33]} 35. f6 {[%emt 0:00:41]} Qe5 {[%emt 0:00:19]} 36. Qh6 {[%emt 0:01:22]} Nxf6 {[%emt 0:00:05]} 37. gxf6 {[%emt 0:00:58]} Rxf6 {[%emt 0:00:10]} 38. Rg5 {[%emt 0:01:52]} Qe6 {[%emt 0:00:25]} 39. Nd4 {[%emt 0:00:32]} Qb6 {[%emt 0:01:04]} 40. Rh4 {[%emt 0:00:19]} Rf1+ {[%emt 0:00:23]} 41. Kxf1 {[%emt 0:30:20]} Qf6+ {[%emt 0:30:30]} 42. Rf5 {[%emt 0:00:19]} 1-0